fUST/lending_fUST_20240705
["ID","MTS","AMOUNT","RATE_DAILY","PERIOD"]
[331228044,1720144251966,-500.0,0.00049315,120]
[331228045,1720144251976,-500.0,0.00049315,120]
[331228046,1720144251986,-500.0,0.00049315,120]
[331228047,1720144251995,-501.50883702,0.00049315,120]
[331228048,1720144252005,-501.59312716,0.00049315,120]
[331228049,1720144252015,-500.0,0.00049315,120]
[331228050,1720144252024,-500.0,0.00049315,120]
[331228051,1720144252034,-500.0,0.00049315,120]
[331228052,1720144252044,-501.11503583,0.00049315,120]
[331228053,1720144252054,-503.81117726,0.00049315,120]
[331228054,1720144252063,-500.0,0.00049315,120]
[331228055,1720144252073,-500.87355856,0.00049315,120]
[331228056,1720144252083,-500.0,0.00049315,120]
[331228057,1720144252092,-501.92071577,0.00049315,120]
[331228058,1720144252102,-500.0,0.00049315,120]
[331228059,1720144252112,-502.68484674,0.00049315,120]
[331228060,1720144252122,-502.8557864,0.00049315,120]
[331228061,1720144252131,-503.05191151,0.00049315,120]
[331228062,1720144252141,-251.699807,0.00049315,14]
[331228063,1720144252151,-251.699807,0.00049315,14]
[331228064,1720144252161,-1002.54771513,0.00049315,120]
[331228065,1720144252170,-511.14876974,0.00049315,120]
[331228066,1720144252180,-251.699807,0.00049315,14]
[331228067,1720144252192,-504.23901388,0.00049315,120]
[331228068,1720144252201,-251.699807,0.00049315,14]
[331228069,1720144252210,-500.0,0.00049315,120]
[331228070,1720144252219,-500.0,0.00049315,120]
[331228071,1720144252228,-500.0,0.00049315,120]
[331228072,1720144252238,-500.0,0.00049315,120]
[331228073,1720144252247,-500.0,0.00049315,120]
[331228074,1720144252257,-269.25,0.00049315,7]
[331228075,1720144252266,-500.0,0.00049315,120]
[331228076,1720144252275,-508.53638127,0.00049315,120]
[331228077,1720144252285,-500.0,0.00049315,120]
[331228078,1720144252295,-536.4410993,0.00049315,120]
[331228079,1720144252304,-504.51564218,0.00049315,120]
[331228080,1720144252314,-519.93006214,0.00049315,120]
[331228081,1720144252323,-610.63,0.00049315,120]
[331228082,1720144252332,-151.0,0.00049315,14]
[331228083,1720144252341,-161.299497,0.00049315,14]
[331228084,1720144252351,-500.0,0.00049315,120]
[331228085,1720144252360,-501.36700784,0.00049315,120]
[331228086,1720144252369,-500.79394903,0.00049315,120]
[331228087,1720144252378,-500.0,0.00049315,120]
[331228088,1720144252388,-502.0095328,0.00049315,120]
[331228089,1720144252398,-507.30448021,0.00049315,120]
[331228090,1720144252408,-500.0,0.00049315,120]
[331228091,1720144252417,-151.0,0.00049315,14]
[331228092,1720144252428,-501.5400647,0.00049315,120]
[331228093,1720144252440,-151.0,0.00049315,14]
[331228094,1720144252450,-500.0,0.00049315,120]
[331228095,1720144252459,-500.0,0.00049315,120]
[331228096,1720144252469,-151.0,0.00049315,14]
[331228097,1720144252478,-151.0,0.00049315,14]
[331228098,1720144252488,-500.0,0.00049315,20]
[331228099,1720144252498,-502.85814302,0.00049315,120]
[331228100,1720144252507,-500.0,0.00049315,120]
[331228101,1720144252516,-500.0,0.00049315,120]
[331228102,1720144252526,-500.0,0.00049315,120]
[331228103,1720144252536,-501.98309266,0.00049315,120]
[331228104,1720144252545,-500.0,0.00049315,120]
[331228105,1720144252555,-1107.08,0.00049315,120]
[331228106,1720144252564,-500.0,0.00049315,120]
[331228107,1720144252574,-502.83565835,0.00049315,120]
[331228108,1720144252587,-152.686926,0.00049315,14]
[331228109,1720144252596,-152.686926,0.00049315,14]
[331228110,1720144252605,-152.686926,0.00049315,14]
[331228111,1720144252618,-503.25694835,0.00049315,120]
[331228112,1720144252632,-152.686926,0.00049315,14]
[331228113,1720144252641,-556.2,0.00049315,120]
[331228114,1720144252651,-500.0,0.00049315,120]
[331228115,1720144252664,-500.0,0.00049315,120]
[331228116,1720144252673,-503.20224291,0.00049315,120]
[331228117,1720144252683,-500.0,0.00049315,120]
[331228118,1720144252699,-505.51795001,0.00049315,120]
[331228119,1720144252709,-1098.72,0.00049315,120]
[331228120,1720144252719,-501.03679113,0.00049315,120]
[331228121,1720144252728,-500.0,0.00049315,120]
[331228122,1720144252738,-500.0,0.00049315,120]
[331228123,1720144252748,-500.0,0.00049315,120]
[331228124,1720144252758,-504.41183965,0.00049315,120]
[331228125,1720144252768,-500.0,0.00049315,120]
[331228126,1720144252778,-500.0,0.00049315,120]
[331228127,1720144252787,-500.0,0.00049315,120]
[331228128,1720144252797,-500.0,0.00049315,120]
[331228129,1720144252808,-532.44859906,0.00049315,120]
[331228130,1720144252818,-500.0,0.00049315,120]
[331228131,1720144252829,-501.94023816,0.00049315,120]
[331228132,1720144252839,-151.0,0.00049315,14]
[331228133,1720144252849,-151.0,0.00049315,14]
[331228134,1720144252858,-501.89463335,0.00049315,120]
[331228135,1720144252869,-503.84264206,0.00049315,120]
[331228136,1720144252878,-500.0,0.00049315,120]
[331228137,1720144252888,-503.70974853,0.00049315,120]
[331228138,1720144252897,-508.04244426,0.00049315,120]
[331228139,1720144252907,-501.34935489,0.00049315,120]
[331228140,1720144253040,-500.0,0.00049315,120]
[331228141,1720144253050,-659.14,0.00049315,120]
[331228142,1720144253060,-502.45757161,0.00049315,120]
[331228143,1720144253069,-501.2354765,0.00049315,120]
[331228144,1720144253078,-503.90651095,0.00049315,120]
[331228145,1720144253089,-502.00355194,0.00049315,120]
[331228146,1720144253098,-500.0,0.00049315,120]
[331228147,1720144253108,-500.0,0.00049315,120]
[331228148,1720144253118,-507.54558057,0.00049315,120]
[331228149,1720144253127,-2043.87,0.00049315,120]
[331228150,1720144253136,-506.65591392,0.00049315,120]
[331228151,1720144253145,-500.0,0.00049315,120]
[331228152,1720144253154,-507.39663372,0.00049315,120]
[331228153,1720144253164,-151.0,0.00049315,14]
[331228154,1720144253173,-151.0,0.00049315,14]
[331228155,1720144253182,-502.24894841,0.00049315,120]
[331228156,1720144253195,-226.229027,0.00049315,14]
[331228157,1720144253204,-226.229027,0.00049315,14]
[331228158,1720144253214,-670.374499,0.00049315,14]
[331228159,1720144253225,-151.0,0.00049315,14]
[331228160,1720144253237,-151.0,0.00049315,14]
[331228161,1720144253247,-670.374499,0.00049315,14]
[331228162,1720144253256,-226.229027,0.00049315,14]
[331228163,1720144253266,-226.229027,0.00049315,14]
[331228164,1720144253275,-490.09931439,0.00049315,120]
[331228165,1720144253284,-504.08177393,0.00049315,120]
[331228166,1720144253293,-670.374499,0.00049315,14]
[331228167,1720144253303,-670.374499,0.00049315,14]
[331228168,1720144253312,-504.24116003,0.00049315,120]
[331228169,1720144253321,-500.0,0.00049315,120]
[331228170,1720144253331,-500.60358472,0.00049315,120]
[331228171,1720144253340,-500.0,0.00049315,120]
[331228172,1720144253349,-200.44967291,0.00049315,7]
[331228173,1720144253359,-151.0,0.00049315,14]
[331228174,1720144253368,-151.0,0.00049315,14]
[331228175,1720144253377,-511.64307378,0.00049315,120]
[331228176,1720144253386,-3630.86,0.00049315,120]
[331228177,1720144253396,-151.0,0.00049315,14]
[331228178,1720144253405,-151.0,0.00049315,14]
[331228179,1720144253414,-500.0,0.00049315,120]
[331228180,1720144253424,-500.0,0.00049315,120]
[331228181,1720144253433,-500.0,0.00049315,120]
[331228182,1720144253447,-500.0,0.00049315,120]
[331228183,1720144253456,-500.0,0.00049315,120]
[331228184,1720144253466,-4373.65,0.00049315,120]
[331228185,1720144253475,-500.0,0.00049315,120]
[331228186,1720144253486,-564.91683015,0.00049315,120]
[331228187,1720144253495,-501.51247287,0.00049315,120]
[331228188,1720144253504,-500.0,0.00049315,120]
[331228189,1720144253513,-500.0,0.00049315,30]
[331228190,1720144253522,-500.0,0.00049315,120]
[331228191,1720144253531,-500.0,0.00049315,120]
[331228192,1720144253540,-504.48363224,0.00049315,120]
[331228193,1720144253549,-502.49858841,0.00049315,120]
[331228194,1720144253558,-195.814252,0.00049315,14]
[331228195,1720144253566,-7172.38,0.00049315,120]
[331228196,1720144253576,-195.814252,0.00049315,14]
[331228197,1720144253586,-500.0,0.00049315,120]
[331228198,1720144253595,-1000.0,0.00049456,14]
[331228199,1720144253604,-301.09207479,0.0004955,14]
[331228200,1720144253615,-176.68873976,0.00049564,30]
[331228201,1720144253628,-1613.26,0.00049588,120]
[331228202,1720144253637,-1613.26,0.00049588,120]
[331228203,1720144253647,-1613.26,0.00049588,120]
[331228204,1720144253657,-1000.0,0.00049588,14]
[331228205,1720144253666,-1181.37,0.00049589,120]
[331228206,1720144253676,-500.0,0.00049589,120]
[331228207,1720144253685,-500.0,0.00049589,120]
[331228208,1720144253700,-2626.03,0.00049589,120]
[331228209,1720144253709,-500.0,0.00049589,120]
[331228210,1720144253718,-3781.74,0.00049589,120]
[331228211,1720144253728,-152.722315,0.00049589,14]
[331228212,1720144253737,-500.0,0.00049589,120]
[331228213,1720144253746,-500.0,0.00049589,120]
[331228214,1720144253755,-500.0,0.00049589,120]
[331228215,1720144253764,-500.0,0.00049589,120]
[331228216,1720144253774,-500.0,0.00049589,120]
[331228217,1720144253783,-500.0,0.00049589,120]
[331228218,1720144253793,-500.0,0.00049589,120]
[331228219,1720144253803,-986.08,0.00049589,120]
[331228220,1720144253813,-500.0,0.00049589,120]
[331228221,1720144253822,-225.48937175,0.00049589,120]
[331228222,1720144253832,-500.0,0.00049589,120]
[331228223,1720144253841,-500.0,0.00049589,120]
[331228224,1720144253850,-500.0,0.00049589,120]
[331228225,1720144253860,-500.0,0.00049589,120]
[331228226,1720144253869,-500.0,0.00049589,120]
[331228227,1720144253879,-500.0,0.00049589,120]
[331228228,1720144253887,-500.0,0.00049589,120]
[331228229,1720144253897,-724.93,0.00049589,120]
[331228230,1720144253906,-504.01781604,0.00049589,120]
[331228231,1720144253916,-586.70741994,0.00049589,120]
[331228232,1720144253934,-500.0,0.00049589,120]
[331228233,1720144253951,-500.0,0.00049589,120]
[331228234,1720144253960,-500.0,0.00049589,120]
[331228235,1720144253970,-500.0,0.00049589,120]
[331228236,1720144253979,-500.0,0.00049589,120]
[331228237,1720144253988,-500.0,0.00049589,120]
[331228238,1720144253997,-500.0,0.00049589,120]
[331228239,1720144254006,-500.0,0.00049589,120]
[331228240,1720144254016,-500.0,0.00049589,120]
[331228241,1720144254026,-500.0,0.00049589,120]
[331228242,1720144254036,-535.35747844,0.00049589,120]
[331228243,1720144254046,-500.0,0.00049589,120]
[331228244,1720144254056,-500.0,0.00049589,120]
[331228245,1720144254066,-210.31341098,0.00049589,120]
[331228246,1720144255292,-289.68658902,0.00049589,120]
[331228247,1720144255301,-500.0,0.00049589,120]
[331228248,1720144255311,-500.0,0.00049589,120]
[331228249,1720144255320,-500.0,0.00049589,120]
[331228250,1720144255330,-500.0,0.00049589,120]
[331228251,1720144255338,-500.0,0.00049589,120]
[331228252,1720144255350,-500.0,0.00049589,120]
[331228253,1720144255359,-500.0,0.00049589,120]
[331228254,1720144255369,-500.0,0.00049589,120]
[331228255,1720144255378,-186.326574,0.00049589,14]
[331228256,1720144255387,-500.0,0.00049589,120]
[331228257,1720144255396,-186.326574,0.00049589,14]
[331228258,1720144255406,-187.64043044,0.00049589,120]
[331228259,1720144255416,-221.00316264,0.00049589,120]
[331228260,1720144255425,-500.0,0.00049589,120]
[331228261,1720144255434,-500.0,0.00049589,120]
[331228262,1720144255448,-500.0,0.00049589,120]
[331228263,1720144255457,-1317.53,0.00049589,120]
[331228264,1720144255466,-500.0,0.00049589,120]
[331228265,1720144255475,-500.0,0.00049589,120]
[331228266,1720144255485,-500.0,0.00049589,120]
[331228267,1720144255494,-500.0,0.00049589,120]
[331228268,1720144255503,-500.0,0.00049589,120]
[331228269,1720144255513,-500.98,0.00049589,120]
[331228270,1720144255522,-500.0,0.00049589,120]
[331228271,1720144255531,-500.0,0.00049589,120]
[331228272,1720144255540,-560.70656433,0.00049589,120]
[331228273,1720144255549,-500.0,0.00049589,120]
[331228274,1720144255559,-500.0,0.00049589,120]
[331228275,1720144255568,-677.94,0.00049589,120]
[331228276,1720144255578,-500.0,0.00049589,120]
[331228277,1720144255589,-596.37,0.00049589,120]
[331228278,1720144255598,-285.308623,0.00049589,14]
[331228279,1720144255608,-500.0,0.00049589,120]
[331228280,1720144255621,-500.0,0.00049589,120]
[331228281,1720144255631,-345.71709893,0.00049589,120]
[331228282,1720144255644,-285.308623,0.00049589,14]
[331228283,1720144255654,-500.0,0.00049589,120]
[331228284,1720144255666,-500.0,0.00049589,120]
[331228285,1720144255676,-500.0,0.00049589,120]
[331228286,1720144255685,-506.18762437,0.00049589,120]
[331228287,1720144255697,-502.94363427,0.00049589,120]
[331228288,1720144255707,-500.0,0.00049589,120]
[331228289,1720144255717,-500.0,0.00049589,120]
[331228290,1720144255727,-500.0,0.00049589,120]
[331228291,1720144255736,-500.0,0.00049589,120]
[331228292,1720144255745,-604.9508773,0.00049589,120]
[331228293,1720144255755,-500.0,0.00049589,120]
[331228294,1720144255764,-500.0,0.00049589,120]
[331228295,1720144255773,-500.0,0.00049589,120]
[331228296,1720144255782,-500.0,0.00049589,120]
[331228297,1720144255792,-500.0,0.00049589,120]
[331228298,1720144255802,-151.0,0.00049589,14]
[331228299,1720144255812,-500.0,0.00049589,120]
[331228300,1720144255822,-151.0,0.00049589,14]
[331228301,1720144255831,-500.0,0.00049589,120]
[331228302,1720144255842,-500.0,0.00049589,120]
[331228303,1720144255851,-151.0,0.00049589,14]
[331228304,1720144255861,-500.0,0.00049589,120]
[331228305,1720144255871,-529.12211643,0.00049589,120]
[331228306,1720144255881,-30.2559679,0.00049589,120]
[331228307,1720144256246,-153.0,0.00027195,2]
[331228308,1720144256255,-153.0,0.00027195,2]
[331228309,1720144256265,-2846.41091448,0.00034634,4]
[331228310,1720144256274,-170.32678473,0.00034669,4]
[331228311,1720144256283,-154.79103211,0.00034669,4]
[331228312,1720144256293,-657.56604356,0.00035259,14]
[331228313,1720144256304,-1155.79358439,0.00035259,14]
[331228314,1720144403766,1158.30679459,9.999e-05,2]
[331228315,1720144407825,1257.42674946,9.999e-05,2]
[331228316,1720144408154,596.76908031,9.999e-05,2]
[331228317,1720144453784,1158.30679459,0.0001212,2]
[331228318,1720144501266,533.61474575,0.0001212,2]
[331228319,1720144503775,1158.30679459,0.0001212,2]
[331228320,1720144522336,154.90239274,9.999e-05,2]
[331228323,1720144579805,972.68077045,0.0001212,2]
[331228328,1720145115546,1336.67555191,0.0001212,2]
[331228329,1720145144156,-263.61154894,0.00014479,2]
[331228330,1720145172228,510.09603467,9.999e-05,2]
[331228331,1720145178424,155.34279108,9.999e-05,2]
[331228332,1720145218725,175.25372401,0.0001212,2]
[331228333,1720145246110,-206.69425313,0.00014479,2]
[331228336,1720145345140,-24900.0,0.00014429,2]
[331228337,1720145345161,-2503.05833673,0.00014479,2]
[331228338,1720145345183,-169.089067,0.00014738,2]
[331228339,1720145345205,-2118.54298063,0.00014794,2]
[331228340,1720145345225,-1916.49944035,0.00014794,2]
[331228341,1720145345244,-1213.12768694,0.00014899,2]
[331228342,1720145345264,-6981.98564229,0.00014998,2]
[331228343,1720145345289,-2132.69930736,0.00014999,2]
[331228344,1720145345308,-1634.75488436,0.00014999,2]
[331228345,1720145345328,-1434.5963251,0.00014999,2]
[331228346,1720145345347,-1104.60661146,0.00015,2]
[331228347,1720145345369,-3996.3030635,0.00016244,2]
[331228348,1720145345391,-3996.3030635,0.00016245,2]
[331228349,1720145345411,-57214.94712358,0.00016254,2]
[331228350,1720145345432,-30000.0,0.00016255,2]
[331228351,1720145345455,-42226.30858632,0.00016255,2]
[331228352,1720145345476,-166.666666,0.00016438,2]
[331228353,1720145345496,-276.42306753,0.00016808,2]
[331228354,1720145345516,-166.666666,0.00016823,2]
[331228355,1720145345541,-166.666666,0.00017208,2]
[331228356,1720145345561,-166.666666,0.00017592,2]
[331228357,1720145345584,-166.666666,0.00017977,2]
[331228358,1720145345604,-9586.41258581,0.00018088,2]
[331228359,1720145345623,-166.666666,0.00018362,2]
[331228360,1720145345642,-250.0,0.00019041,2]
[331228361,1720145345661,-159.2417,0.00019178,2]
[331228362,1720145345694,-440.6010737,0.00019178,4]
[331228363,1720145345719,-3996.3030635,0.0001979,2]
[331228364,1720145345741,-3996.3030635,0.0001979,2]
[331228365,1720145345765,-13869.88313809,0.000198,2]
[331228366,1720145345789,-44061.40116106,0.000198,2]
[331228367,1720145365102,-2117.5239,0.000198,2]
[331228368,1720145372121,-5921.14859007,0.000198,2]
[331228369,1720145372139,-1116.9418809,0.0002,2]
[331228370,1720145372157,-4172.94461587,0.0002,2]
[331228371,1720145372176,-1724.35538883,0.0002,2]
[331228372,1720145372196,-154.79103211,0.0002,2]
[331228373,1720145372218,-750.0,0.00021096,2]
[331228374,1720145372239,-169.089067,0.00022108,2]
[331228375,1720145372259,-879.23230837,0.0002217,2]
[331228376,1720145372280,-169.79630524,0.0002325,2]
[331228377,1720145372303,-159.5412235,0.00023267,2]
[331228378,1720145372326,-169.79630524,0.00023298,2]
[331228379,1720145372346,-168.25169945,0.00023629,2]
[331228380,1720145372368,-157.72566491,0.00023659,2]
[331228381,1720145372388,-168.25169945,0.0002384,2]
[331228382,1720145372409,-169.79630524,0.00024044,2]
[331228383,1720145372429,-153.17748372,0.00024148,2]
[331228384,1720145372449,-157.72566491,0.00024469,2]
[331228385,1720145372469,-200.0,0.00024658,15]
[331228386,1720145372488,-380.0,0.00024658,2]
[331228387,1720145372509,-169.79630524,0.00024862,2]
[331228388,1720145372529,-169.79630524,0.00024993,2]
[331228389,1720145372554,-169.79630524,0.0002521,2]
[331228390,1720145372574,-157.72566491,0.0002532,2]
[331228391,1720145372595,-169.79630524,0.00025422,2]
[331228392,1720145372615,-159.5412235,0.00025493,2]
[331228393,1720145372635,-153.66610144,0.00026014,2]
[331228394,1720145372655,-536.73435049,0.00026027,30]
[331228395,1720145372675,-157.72566491,0.00026062,2]
[331228396,1720145372696,-168.25169945,0.00026365,2]
[331228397,1720145372716,-3000.0,0.000265,2]
[331228398,1720145372736,-3000.0,0.0002651,2]
[331228399,1720145372757,-3000.0,0.0002652,2]
[331228400,1720145372777,-3000.0,0.0002653,2]
[331228401,1720145372804,-1008.21275489,0.0002654,2]
[331228447,1720145433368,-481.00498921,0.00018899,2]
[331228475,1720145441320,-1544.13388645,0.00018899,2]
[331228477,1720145441332,-6228.88744771,0.00018899,2]
[331228479,1720145441348,-14257.24200143,0.00018899,2]
[331228493,1720145441473,-19715.04026152,0.00018899,2]
[331228495,1720145441483,-1095.19071282,0.00023209,2]
[331228497,1720145441493,-276.42306753,0.00023968,2]
[331228499,1720145441502,-57214.94712358,0.00024,2]
[331228501,1720145441512,-551.98251632,0.00024,2]
[331228503,1720145441521,-551.98251632,0.00024,2]
[331228505,1720145441531,-6981.98564229,0.00024,2]
[331228507,1720145441540,-643.75953564,0.0002437,2]
[331228509,1720145441549,-22173.23120803,0.00025,2]
[331228511,1720145441559,-200.0,0.00025568,15]
[331228513,1720145441568,-1991.78724511,0.0002654,2]
[331228515,1720145441578,-3000.0,0.0002655,2]
[331228517,1720145441593,-3000.0,0.0002656,2]
[331228519,1720145441606,-3996.3030635,0.0002656,3]
[331228521,1720145441616,-3000.0,0.0002657,2]
[331228523,1720145441628,-3000.0,0.0002658,2]
[331228525,1720145441641,-3000.0,0.0002659,2]
[331228527,1720145441654,-7992.606127,0.0002659,3]
[331228529,1720145441667,-3000.0,0.000266,2]
[331228532,1720145441681,-88888.0,0.000266,3]
[331228534,1720145441693,-153.66610144,0.00026606,2]
[331228536,1720145441704,-3000.0,0.0002661,2]
[331228539,1720145441715,-3000.0,0.0002662,2]
[331228541,1720145441727,-3000.0,0.0002663,2]
[331228543,1720145441739,-3000.0,0.0002664,2]
[331228545,1720145441751,-3000.0,0.0002665,2]
[331228548,1720145441762,-553.77494999,0.0002665,2]
[331228550,1720145441775,-3000.0,0.0002666,2]
[331228552,1720145441786,-3000.0,0.0002667,2]
[331228554,1720145441798,-6934.94156904,0.0002668,2]
[331228557,1720145441809,-3000.0,0.0002668,2]
[331228559,1720145441821,-3000.0,0.0002669,2]
[331228562,1720145441837,-3000.0,0.000267,2]
[331228564,1720145441849,-3000.0,0.0002671,2]
[331228566,1720145441862,-3000.0,0.0002672,2]
[331228568,1720145441874,-3000.0,0.0002673,2]
[331228572,1720145441896,-3000.0,0.0002674,2]
[331228574,1720145441909,-3996.3030635,0.0002674,3]
[331228576,1720145441922,-3000.0,0.0002675,2]
[331228579,1720145441939,-3000.0,0.0002676,2]
[331228582,1720145441953,-168.25169945,0.00026762,2]
[331228584,1720145441968,-3000.0,0.0002677,2]
[331228587,1720145441982,-3000.0,0.0002678,2]
[331228589,1720145441996,-3000.0,0.0002679,2]
[331228592,1720145442008,-3000.0,0.000268,2]
[331228593,1720145442023,-3000.0,0.0002681,2]
[331228594,1720145442036,-3000.0,0.0002682,2]
[331228595,1720145442046,-3000.0,0.0002683,2]
[331228596,1720145442056,-3000.0,0.0002684,2]
[331228597,1720145442068,-3000.0,0.0002685,2]
[331228598,1720145442080,-3000.0,0.0002686,2]
[331228599,1720145442091,-3000.0,0.0002687,2]
[331228600,1720145442104,-3000.0,0.0002688,2]
[331228601,1720145442118,-3000.0,0.0002689,2]
[331228602,1720145442130,-3000.0,0.000269,2]
[331228603,1720145442142,-3996.3030635,0.000269,3]
[331228604,1720145442153,-3000.0,0.0002691,2]
[331228605,1720145442165,-3000.0,0.0002692,2]
[331228606,1720145442178,-3000.0,0.0002693,2]
[331228608,1720145442191,-3000.0,0.0002694,2]
[331228610,1720145442203,-168.25169945,0.00026962,2]
[331228613,1720145442218,-157.72566491,0.00026997,2]
[331228615,1720145442230,-153.66610144,0.00027182,2]
[331228617,1720145442242,-17247.80566422,0.00027184,2]
[331228619,1720145442252,-750.0,0.00027195,2]
[331228622,1720145442263,-218.6193901,0.00027397,120]
[331228624,1720145442272,-175.1548047,0.000274,2]
[331228626,1720145442283,-168.25169945,0.00027622,2]
[331228628,1720145442295,-174.716494,0.00027704,2]
[331228630,1720145442306,-149.997358,0.00027704,2]
[331228633,1720145442318,-159.2417,0.0002774,2]
[331228635,1720145442331,-157.72566491,0.00027851,2]
[331228637,1720145442346,-153.66610144,0.00027946,2]
[331228639,1720145442356,-174.716494,0.00028051,2]
[331228641,1720145442366,-149.997358,0.00028051,2]
[331228644,1720145442378,-169.79630524,0.00028319,2]
[331228646,1720145442389,-174.716494,0.00028397,2]
[331228648,1720145442401,-149.997358,0.00028397,2]
[331228651,1720145442414,-174.716494,0.00028743,2]
[331228653,1720145442426,-149.997358,0.00028743,2]
[331228655,1720145442437,-168.25169945,0.00028809,2]
[331228657,1720145442448,-169.79630524,0.00028992,2]
[331228659,1720145442459,-174.716494,0.0002909,2]
[331228661,1720145442469,-149.997358,0.0002909,2]
[331228663,1720145442479,-169.79630524,0.00029282,2]
[331228666,1720145442491,-150.23442167,0.00029546,30]
[331228668,1720145442504,-151.08380421,0.00029557,2]
[331228670,1720145442514,-150.0,0.00029574,7]
[331228672,1720145442525,-150.0,0.00029574,7]
[331228674,1720145442535,-200.0,0.00029574,7]
[331228677,1720145442550,-774.94,0.00029596,30]
[331228679,1720145442560,-1253.15,0.00029596,30]
[331228681,1720145442571,-151.08380421,0.00029722,2]
[331228683,1720145442582,-9615.23092531,0.00029813,2]
[331228686,1720145442595,-471.27760912,0.0003,4]
[331228688,1720145442606,-642.76758109,0.0003,4]
[331228690,1720145442617,-1000.0,0.0003,120]
[331228692,1720145442628,-221.0,0.0003,2]
[331228694,1720145442639,-153.66610144,0.00030427,7]
[331228697,1720145442650,-153.66610144,0.00030461,7]
[331228699,1720145442661,-153.66610144,0.00030636,7]
[331228701,1720145442672,-153.66610144,0.00030973,7]
[331228703,1720145442683,-150.34002918,0.00031372,7]
[331228705,1720145442694,-157.72566491,0.00031393,7]
[331228708,1720145442707,-151.08380421,0.00031433,7]
[331228710,1720145442718,-153.17748372,0.00031516,7]
[331228712,1720145442730,-169.79630524,0.00031826,7]
[331228715,1720145442742,-153.66610144,0.00031981,7]
[331228717,1720145442754,-1008.0,0.00032,120]
[331228719,1720145442765,-153.66610144,0.00032289,7]
[331228721,1720145442776,-553.77494996,0.00032428,2]
[331228723,1720145442787,-2408.00783578,0.000325,60]
[331228726,1720145442798,-159.5412235,0.00032652,7]
[331228728,1720145442808,-157.72566491,0.00032715,7]
[331228730,1720145442819,-3996.3030635,0.00032839,4]
[331228732,1720145442831,-157.72566491,0.00032849,7]
[331228734,1720145442844,-157.72566491,0.00032931,7]
[331228737,1720145442855,-169.79630524,0.00032952,7]
[331228739,1720145442865,-153.17748372,0.0003299,7]
[331228741,1720145442876,-221.0,0.00033,2]
[331228743,1720145442887,-151.08380421,0.00033137,7]
[331228745,1720145442898,-151.08380421,0.00033262,7]
[331228747,1720145442909,-750.0,0.00033295,2]
[331228749,1720145442919,-153.66610144,0.00033329,7]
[331228752,1720145442929,-168.25169945,0.00033492,7]
[331228754,1720145442940,-159.2983416,0.00033745,7]
[331228756,1720145442951,-169.79630524,0.00033787,7]
[331228758,1720145442963,-153.66610144,0.00033873,7]
[331228760,1720145442973,-153.66610144,0.00033994,7]
[331228762,1720145442983,-1000.0,0.00034,120]
[331228765,1720145442994,-169.79630524,0.00034093,7]
[331228767,1720145443005,-2146.27761673,0.00034491,14]
[331228769,1720145443016,-153.66610144,0.00034527,7]
[331228771,1720145443032,-6329.73360915,0.00034555,4]
[331228774,1720145443044,-3252.46185806,0.00034634,4]
[331228776,1720145443054,-153.17748372,0.00034701,7]
[331228778,1720145443066,-655.29709415,0.00035,30]
[331228780,1720145443077,-169.79630524,0.00035208,7]
[331228782,1720145443090,-303.02802488,0.00035259,4]
[331228784,1720145443101,-284.22582068,0.00035259,3]
[331228786,1720145443113,-1025.42362351,0.00035259,4]
[331228788,1720145443129,-574.98913929,0.00035259,4]
[331228790,1720145443140,-253.98954123,0.00035259,4]
[331228792,1720145443151,-1379.21743815,0.00035292,7]
[331228795,1720145443163,-440.9209018,0.00035516,2]
[331228797,1720145443174,-215.10199221,0.00035581,4]